bitfinex/quotes_ETHUSD_20251215
["timestamp","ask_amount","ask_price","bid_price","bid_amount"]
[1765794710677,6.29603978,3176.6,3175.3,5.04930694]
[1765794711070,9.44405967,3176.6,3175.4,0.405504]
[1765794711271,1.00654381,3176.5,3175.4,0.405504]
[1765794711702,6.2964362,3176.4,3175.4,3.55470059]
[1765794712030,9.4446543,3176.4,3175.3,1.9]
[1765794712311,12.5928724,3176.4,3175.3,1.9]
[1765794712472,12.5928724,3176.4,3175.3,1.901]
[1765794712806,1.36120694,3176.3,3175.3,1.901]
[1765794712984,0.58047529,3176.9,3175.3,1.901]
[1765794712985,3.1474254,3177.2,3175.4,6.70382789]
[1765794713181,12.5897016,3177.2,3175.4,6.70382789]
[1765794713383,6.2948508,3177.2,3175.5,0.61196639]
[1765794713599,3.14873611,3177.9,3175.5,0.61196639]
[1765794713600,6.29366228,3177.8,3175.7,30.0]
[1765794713904,0.002,3177.9,3176.0,0.98597929]
[1765794714109,0.002,3177.9,3176.0,0.61196143]
[1765794714278,0.002,3177.9,3176.1,0.405504]
[1765794714802,0.002,3177.9,3176.2,0.03148416]
[1765794715391,0.002,3177.9,3176.1,0.405504]
[1765794715709,0.002,3177.9,3176.2,3.14841634]
[1765794716000,0.01265322,3177.8,3176.1,3.14848044]
[1765794716206,0.62284372,3177.7,3175.8,3.14878874]
[1765794716402,0.62284372,3177.7,3175.3,1.901]
[1765794716606,0.62284372,3177.7,3175.9,3.14870955]
[1765794716977,0.62284372,3177.7,3175.8,3.14881108]
[1765794717180,0.62284372,3177.7,3176.1,3.14850401]
[1765794717612,0.62284372,3177.7,3176.2,0.405504]
[1765794717813,6.2940584,3177.6,3176.4,0.405504]
[1765794717979,6.2940584,3177.6,3176.4,0.98597929]
[1765794718710,6.2940584,3177.6,3176.2,3.14837545]
[1765794718888,6.2940584,3177.6,3176.4,0.405504]
[1765794719910,0.002,3177.9,3176.6,0.405504]
[1765794720129,0.0012,3177.9,3176.3,0.405504]
[1765794720719,0.01265322,3177.8,3175.9,3.14862263]
[1765794720885,0.01265322,3177.8,3176.0,3.14857478]
[1765794721078,0.01265322,3177.8,3175.3,1.901]
[1765794721281,0.0012,3177.9,3175.3,1.901]
[1765794721519,0.0012,3177.9,3175.6,0.58047529]
[1765794721702,0.0012,3177.9,3176.3,3.55378838]
[1765794721903,0.0012,3177.9,3175.6,3.14901022]
[1765794721904,15.7346508,3177.7,3175.6,3.14901022]
[1765794722101,12.58772064,3177.7,3175.6,6.29802143]
[1765794722312,12.58772064,3177.7,3175.8,0.405504]
[1765794722313,1.31681959,3177.6,3175.8,0.405504]
[1765794724114,1.31681959,3177.6,3175.7,0.94470944]
[1765794724115,0.58047529,3177.4,3175.7,0.94470944]
[1765794724320,6.79425928,3177.4,3175.4,0.24814753]
[1765794724491,0.01265322,3177.3,3175.3,5.05025495]
[1765794724686,0.01265322,3177.3,3175.3,1.901]
[1765794724882,6.21378399,3176.9,3175.3,1.901]
[1765794725096,0.58047529,3176.7,3175.3,1.901]
[1765794725293,0.58047529,3176.8,3175.3,1.901]
[1765794725593,0.01265322,3176.6,3175.3,1.901]
[1765794725995,12.59247596,3176.5,3175.3,1.901]
[1765794726190,0.58047529,3176.4,3175.3,1.901]
[1765794726684,0.58047529,3176.4,3175.3,0.001]
[1765794726685,0.01265322,3176.3,3175.3,0.001]
[1765794726888,6.21378399,3175.9,3175.3,0.001]
[1765794727113,0.6213784,3175.8,3175.3,0.001]
[1765794727922,0.01265322,3176.3,3175.3,0.001]
[1765794728133,0.59312851,3176.1,3175.3,0.001]
[1765794729322,9.4458438,3176.0,3175.3,0.001]
[1765794730089,6.2972292,3176.0,3175.3,0.001]
[1765794730788,3.1486146,3176.0,3175.3,0.001]
[1765794731189,3.14815689,3176.5,3175.3,0.001]
[1765794731190,6.29627588,3176.5,3175.3,0.001]
[1765794731418,0.94443272,3176.4,3175.3,0.001]
[1765794732238,6.29627588,3176.5,3175.3,0.001]
[1765794732606,6.29627588,3176.5,3175.6,1.9]
[1765794732814,9.44443277,3176.5,3175.6,1.9]
[1765794733225,9.44376237,3176.7,3175.6,1.9]
[1765794733531,0.01265322,3176.6,3175.6,1.9]
[1765794733741,1.26043364,3176.5,3175.3,0.001]
[1765794734294,0.01265322,3176.4,3175.3,0.001]
[1765794734698,1.26043364,3176.5,3175.3,0.001]
[1765794734996,0.01265322,3176.4,3175.3,0.001]
[1765794735197,0.58047529,3176.2,3175.3,0.001]
[1765794735408,1.31737442,3176.1,3175.3,0.001]
[1765794737200,9.4458438,3176.0,3175.3,0.001]
[1765794738100,6.2972292,3176.0,3175.4,1.9]
[1765794738296,6.2972292,3176.0,3175.3,0.001]
[1765794738297,9.4458438,3176.0,3175.3,0.001]
[1765794738728,0.58047529,3175.9,3175.3,0.001]
[1765794738911,0.58047529,3175.7,3175.3,0.001]
[1765794739104,10.389277,3175.4,3175.3,0.001]
[1765794739305,14.52446583,3175.4,3175.3,0.001]
[1765794740242,37.45018883,3175.4,3175.3,0.001]
[1765794740641,29.82991183,3175.4,3175.3,0.001]
[1765794740842,10.22671424,3175.4,3175.3,0.001]
[1765794741021,7.04468483,3175.4,3175.3,0.001]
[1765794741527,3.72968483,3175.4,3175.3,0.001]
[1765794742434,0.58047529,3174.5,3174.0,0.001]
[1765794743429,0.01185322,3174.1,3174.0,0.001]
[1765794743605,6.30040322,3174.4,3174.0,0.001]
[1765794743805,0.01265322,3174.3,3174.0,0.001]
[1765794744123,6.30040322,3174.4,3174.0,0.001]
[1765794745142,3.15020161,3174.4,3174.0,0.001]
[1765794745346,3.14984607,3174.8,3174.0,0.001]
[1765794746040,0.01265322,3174.8,3174.0,0.001]
[1765794746422,0.01265322,3174.6,3174.0,0.001]
[1765794746622,0.01265322,3174.5,3174.0,0.001]
[1765794747360,3.1504001,3174.2,3174.0,0.001]
[1765794747857,3.15034359,3174.3,3174.0,0.001]
[1765794748417,3.15011541,3174.5,3174.0,0.001]
[1765794748617,6.30031029,3174.5,3174.0,0.001]
[1765794749059,3.15011541,3174.5,3174.0,0.001]
[1765794749347,0.58047529,3174.9,3174.0,0.001]
[1765794749526,0.68796879,3174.8,3174.0,0.001]
[1765794749727,0.01265322,3174.3,3174.0,0.001]
[1765794750948,0.01265322,3174.5,3174.0,0.001]
[1765794751248,0.01265322,3174.3,3174.0,0.001]
[1765794751845,3.1504001,3174.2,3174.0,0.001]
[1765794754454,4.09676666,3174.2,3174.0,0.001]
[1765794754655,0.01265322,3174.1,3174.0,0.001]
[1765794754859,4.09676666,3174.2,3174.0,0.001]
[1765794755028,6.3008002,3174.2,3174.0,0.001]
[1765794760144,0.58047529,3174.6,3174.0,0.001]
[1765794762368,9.45030711,3174.5,3174.0,0.001]
[1765794763353,5.95256675,3174.4,3174.0,0.001]
[1765794763563,0.01265322,3174.1,3174.0,0.001]
[1765794764672,3.15049935,3174.1,3174.0,0.001]
[1765794766747,6.30080542,3174.2,3174.0,0.001]
[1765794768650,0.002,3174.1,3174.0,0.001]
[1765794782466,3.15249935,3174.1,3174.0,0.001]
[1765794782666,3.78405476,3174.1,3174.0,0.001]
[1765794785223,4.36453005,3174.1,3174.0,0.001]
[1765794785396,4.36453005,3174.1,3172.7,0.001]
[1765794785397,35.52525045,3174.1,3172.7,0.001]
[1765794785704,0.58047529,3173.9,3172.7,0.001]
[1765794786007,0.58047529,3174.0,3172.7,0.001]
[1765794786154,1.06655288,3173.9,3172.7,0.63161765]
[1765794787190,3.15079715,3173.8,3172.7,6.9353475]
[1765794787680,0.002,3174.1,3172.7,10.08723705]
[1765794787885,0.002,3174.1,3172.8,0.405504]
[1765794788083,3.15253905,3174.1,3172.8,0.405504]
[1765794788424,6.3030781,3174.1,3172.8,0.405504]
[1765794788695,0.63030781,3174.0,3172.9,0.73408515]
[1765794788880,0.64296103,3174.0,3172.7,6.9353475]
[1765794789079,3.15089643,3173.7,3172.7,0.001]
[1765794789893,6.30179286,3173.7,3172.7,0.001]
[1765794790081,6.30099286,3173.7,3172.7,0.001]
[1765794790660,6.30099286,3173.7,3173.0,1.9]
[1765794791495,6.30139574,3173.9,3173.0,1.9]
[1765794791694,7.3691309,3173.9,3173.0,1.9]
[1765794791897,0.01265322,3173.8,3173.0,1.9]
[1765794793574,6.30179286,3173.7,3173.0,1.9]
[1765794794100,0.01265322,3173.6,3173.0,1.9]
[1765794795606,0.01265322,3173.6,3173.0,1.901]
[1765794795809,0.01265322,3173.8,3173.0,1.901]
[1765794795810,3.151095,3173.5,3173.0,1.901]
[1765794796179,6.30219,3173.5,3173.0,1.901]
[1765794797474,6.932409,3173.5,3173.0,1.901]
[1765794797676,0.01265322,3173.1,3173.0,1.901]
[1765794798007,6.3025872,3173.3,3173.0,0.001]
[1765794798008,0.59312851,3173.2,3173.0,0.001]
[1765794799805,3.73196752,3173.1,3173.0,0.001]
[1765794801290,4.4215689,3173.1,3173.0,0.001]
[1765794805217,3.15146637,3173.2,3173.0,0.001]
[1765794805419,3.15134364,3173.3,3173.0,0.001]
[1765794805716,7.92178305,3173.5,3173.0,0.001]
[1765794805927,11.07287805,3173.5,3173.0,0.001]
[1765794806093,6.30219,3173.5,3173.0,0.001]
[1765794806293,11.07287805,3173.5,3173.0,0.001]
[1765794806521,12.81316586,3173.5,3173.0,0.001]
[1765794806812,4.77068805,3173.2,3173.0,0.001]
[1765794807120,8.04247781,3173.5,3173.0,0.001]
[1765794807121,5.35116334,3173.1,3173.0,0.001]
[1765794807335,11.19357281,3173.5,3173.0,0.001]
[1765794807336,3.15145986,3173.2,3173.0,0.001]
[1765794808931,6.3029136,3173.2,3173.0,0.001]
[1765794809517,3.7315914,3173.5,3173.0,0.001]
[1765794809518,0.58047529,3173.3,3173.0,0.001]
[1765794811633,6.30278582,3173.2,3173.0,0.001]
[1765794812018,3.15139291,3173.2,3173.0,0.001]
[1765794812551,6.30278582,3173.2,3173.0,0.001]
[1765794813219,3.15059291,3173.2,3173.0,0.001]
[1765794813624,3.73166959,3173.4,3173.0,0.001]
[1765794813937,7.6304459,3173.4,3173.0,0.001]
[1765794814416,3.15110984,3173.5,3173.0,0.001]
[1765794814616,6.30221968,3173.5,3173.0,0.001]
[1765794815639,0.58047529,3173.6,3173.0,0.001]
[1765794816337,0.59312851,3173.6,3173.0,0.001]
[1765794817253,0.58047529,3173.6,3173.0,0.001]
[1765794817839,6.30219,3173.5,3173.0,0.001]
[1765794818619,3.151095,3173.5,3173.0,0.001]
[1765794820135,0.58047529,3173.5,3173.0,0.001]
[1765794821940,0.002,3173.7,3173.0,0.9117721]
[1765794822148,0.002,3173.7,3173.2,0.405504]
[1765794823012,0.002,3173.7,3173.1,3.15149223]
[1765794824032,0.002,3173.7,3173.1,6.30298446]
[1765794824237,0.002,3173.7,3173.0,6.7096871]
[1765794824432,0.002,3173.7,3173.1,0.86096871]
[1765794826148,0.002,3173.7,3173.1,4.01239082]
[1765794826351,0.002,3173.7,3173.0,0.001]
[1765794827127,0.002,3173.7,3173.0,0.406504]
[1765794827332,0.002,3173.7,3173.0,3.55804432]
[1765794827540,0.002,3173.7,3173.0,0.406504]
[1765794827744,0.002,3173.7,3173.0,0.001]
[1765794829153,0.002,3173.7,3173.0,0.406504]
[1765794829349,0.002,3173.7,3173.1,0.54581512]
[1765794829544,0.002,3173.7,3173.0,0.406504]
[1765794829747,0.002,3173.7,3173.0,0.001]
[1765794830762,6.30379286,3173.7,3173.0,0.001]
[1765794836145,4.78180332,3173.6,3173.0,0.001]
[1765794836472,11.0717373,3173.3,3173.0,0.001]
[1765794836773,12.17937635,3173.3,3173.0,0.001]
[1765794837969,4.25893265,3173.3,3173.0,0.001]
[1765794838169,3.1504936,3173.3,3173.0,0.001]
[1765794838775,6.3017872,3173.3,3173.0,0.001]
[1765794838974,3.1504936,3173.3,3173.0,0.001]
[1765794840668,0.58047529,3173.4,3173.0,0.001]
[1765794840855,3.151095,3173.5,3173.0,0.001]
[1765794842889,6.30204054,3173.6,3173.0,0.001]
[1765794843093,7.41062493,3173.6,3173.0,0.001]
[1765794845095,4.78180332,3173.5,3173.0,0.001]
[1765794845390,0.01265322,3173.5,3173.0,0.001]
[1765794846688,6.3023886,3173.4,3173.0,0.001]
[1765794847000,5.36227861,3173.3,3173.0,0.001]
[1765794847164,0.01265322,3173.1,3173.0,0.001]
[1765794848692,3.16414545,3173.1,3173.0,0.001]
[1765794848935,3.74462074,3173.1,3173.0,0.001]
[1765794849804,8.51377084,3173.1,3173.0,0.001]
[1765794849994,3.315,3172.9,3172.7,0.001]
[1765794850321,9.05417292,3172.8,3172.7,0.001]
[1765794851120,12.20596313,3172.8,3172.7,0.001]
[1765794851301,23.566105,3172.4,3172.0,0.001]
[1765794851492,8.66462539,3172.1,3172.0,0.001]
[1765794852798,5.34962539,3172.1,3172.0,0.001]
[1765794853129,30.19521322,3172.1,3171.4,0.001]
[1765794853334,5.34962539,3171.5,3171.4,0.001]
[1765794854125,0.58047529,3171.5,3171.4,0.001]
[1765794854427,0.58047529,3172.0,3171.4,0.001]
[1765794854800,5.34962539,3172.0,3171.4,0.001]
[1765794855125,3.15262078,3172.0,3171.4,0.001]
[1765794855528,3.15240366,3172.2,3171.4,0.001]
[1765794855734,6.3039778,3172.6,3171.4,0.001]
[1765794855911,7.45151067,3172.6,3171.4,0.001]
[1765794856105,6.3039778,3172.6,3171.4,0.406504]
[1765794856328,6.3039778,3172.6,3171.4,0.001]
[1765794856528,3.1519889,3172.6,3171.4,0.001]
[1765794856933,0.58047529,3172.5,3171.4,0.001]
[1765794857100,3.15218761,3172.4,3171.4,6.30736312]
[1765794857435,0.58047529,3172.6,3171.5,1.07679071]
[1765794858506,0.01265322,3173.4,3171.5,1.657266]
[1765794859027,6.30219,3173.5,3171.5,1.657266]
[1765794859334,6.30219,3173.5,3171.8,0.405504]
[1765794859506,0.58047529,3173.4,3171.8,0.405504]
[1765794859701,1.27020714,3173.4,3171.8,0.405504]
[1765794859948,1.26940714,3173.4,3171.8,0.405504]
[1765794861815,0.58047529,3173.2,3171.9,9.45805353]
[1765794862016,0.58047529,3173.2,3172.0,0.405504]
[1765794862230,0.002,3173.6,3172.0,0.405504]
[1765794862531,0.58047529,3173.4,3172.2,0.405504]
[1765794862733,0.58047529,3173.4,3171.9,6.30536902]
[1765794862907,9.46595652,3173.5,3171.9,6.30536902]
[1765794863232,0.58047529,3173.4,3171.9,6.30536902]
[1765794863433,0.01265322,3173.1,3171.9,6.30536902]
[1765794863606,0.01265322,3173.1,3172.0,0.6305369]
[1765794863932,6.3031831,3173.0,3172.0,0.6305369]
[1765794864116,0.01265322,3172.9,3171.9,3.15264074]
[1765794864310,6.3031831,3173.0,3172.0,3.15255846]
[1765794865124,6.3031831,3173.0,3171.9,3.1526461]
[1765794865312,9.45477465,3173.0,3172.0,3.15257887]
[1765794865523,0.94674279,3172.9,3172.0,3.15257887]
[1765794866030,6.30358042,3172.8,3171.8,0.001]
[1765794866540,0.58047529,3172.7,3171.8,0.001]
[1765794867038,0.59312851,3172.7,3171.8,0.001]
[1765794867619,0.01265322,3172.5,3171.8,0.001]
[1765794868313,6.30437522,3172.4,3171.8,0.001]
[1765794868513,7.25128001,3172.4,3171.8,0.001]
[1765794870014,3.15218761,3172.4,3171.8,0.001]
[1765794870336,0.58047529,3172.7,3171.8,0.001]
[1765794872232,3.1519889,3172.6,3171.8,0.001]
[1765794873114,3.15160728,3173.0,3171.8,0.001]
[1765794873317,3.15160728,3173.0,3171.9,0.405504]
[1765794873718,3.15160728,3173.0,3171.8,0.001]
[1765794873919,6.30321456,3173.0,3171.8,0.001]
[1765794874316,6.88306249,3173.3,3171.9,0.405504]
[1765794874553,1.00489356,3173.2,3172.1,0.405504]
[1765794876566,6.30298446,3173.1,3172.2,3.15238635]
[1765794876869,6.30298446,3173.1,3172.2,6.3047727]
[1765794877763,0.002,3173.4,3172.3,0.405504]
[1765794878170,3.15132161,3173.3,3172.3,0.405504]
[1765794878349,6.61797538,3173.3,3172.3,1.07653167]
[1765794878545,6.61797538,3173.3,3172.5,0.405504]
[1765794879335,3.46665377,3173.3,3172.5,0.405504]
[1765794879534,6.61797538,3173.3,3172.5,0.405504]
[1765794880553,6.61797538,3173.3,3172.5,3.15208513]
[1765794880761,3.46665377,3173.3,3172.5,3.15208513]
[1765794880955,3.15132161,3173.3,3172.5,6.68648466]
[1765794881166,6.30264322,3173.3,3172.5,3.53439641]
[1765794881372,6.30264322,3173.3,3172.5,3.15208513]
[1765794881682,3.15132161,3173.3,3172.5,6.30417338]
[1765794881846,6.30264322,3173.3,3172.5,3.15208513]
[1765794882544,6.3043886,3173.4,3172.1,0.405504]
[1765794882842,6.3043886,3173.4,3172.0,0.001]
[1765794883044,1.53994658,3173.3,3172.0,3.15353395]
[1765794883233,0.01265322,3173.1,3172.0,0.001]
[1765794883672,0.01265322,3172.9,3172.0,3.15354175]
[1765794884058,0.01265322,3172.9,3172.1,3.15248449]
[1765794884258,0.01265322,3173.1,3172.2,3.15237283]
[1765794884969,6.3031831,3173.0,3172.0,0.001]
[1765794885166,0.94681807,3173.3,3172.0,0.001]
[1765794885468,0.002,3173.4,3172.0,0.001]
[1765794885840,3.15319984,3173.4,3172.0,0.001]
[1765794886264,0.002,3173.4,3172.0,0.001]
[1765794886660,3.15322408,3173.4,3172.0,0.001]
[1765794887265,3.15322408,3173.4,3172.0,0.98697929]
[1765794887459,3.15322408,3173.4,3172.2,0.405504]
[1765794887852,6.30444816,3173.4,3172.2,0.405504]
[1765794888050,6.30444816,3173.4,3172.1,1.35977173]
[1765794888346,6.30444816,3173.4,3172.0,0.58147529]
[1765794888551,6.30444816,3173.4,3172.1,0.405504]
[1765794889285,3.15322408,3173.4,3172.1,0.405504]
[1765794889578,3.15322408,3173.4,3172.3,0.405504]
[1765794890084,0.002,3173.4,3172.3,0.405504]
[1765794890280,0.002,3173.4,3172.5,0.405504]
[1765794892590,0.002,3173.4,3172.6,3.1519889]
[1765794894082,0.002,3173.4,3172.7,0.405504]
[1765794894766,0.002,3173.4,3172.8,6.30358042]
[1765794895087,0.002,3173.4,3172.8,3.15179021]
[1765794895275,0.002,3173.4,3172.9,0.405504]
[1765794896396,0.002,3173.4,3173.1,0.405504]
[1765794896545,0.002,3173.4,3173.3,0.405504]
[1765794896751,0.002,3173.4,3173.3,3.5567976]
[1765794897688,0.002,3173.4,3173.3,3.1512936]
[1765794897996,0.002,3173.4,3172.8,3.1517316]
[1765794898294,0.002,3173.4,3173.0,3.15151914]
[1765794899693,0.002,3173.4,3173.1,0.405504]
[1765794900968,0.002,3173.4,3173.0,0.405504]
[1765794901295,0.002,3173.4,3172.9,3.46682425]
[1765794901998,0.002,3173.4,3172.8,3.15175852]
[1765794902215,0.002,3173.4,3172.4,0.98626631]
[1765794902365,4.76967286,3173.2,3172.1,3.15242094]
[1765794902697,4.76967286,3172.6,3171.9,3.15268175]
[1765794902878,4.76967286,3172.6,3171.8,3.15374608]
[1765794903079,0.58047529,3172.5,3171.8,0.001]
[1765794903277,4.76967286,3172.3,3171.8,0.001]
[1765794903702,3.15238635,3172.2,3171.8,0.001]
[1765794906207,3.16503957,3172.2,3171.8,0.001]
[1765794906504,3.16423957,3172.2,3171.8,0.001]
[1765794910200,0.58047529,3172.1,3171.8,0.001]
[1765794912013,20.75093629,3171.9,3171.8,0.001]
[1765794912317,13.93503829,3171.9,3171.8,0.001]
[1765794912533,6.11207329,3171.9,3171.8,0.001]
[1765794913122,0.405504,3171.6,3171.0,0.001]
[1765794913423,0.58047529,3171.5,3171.0,0.001]
[1765794913641,0.6538182,3171.4,3171.0,0.001]
[1765794913988,6.30656196,3171.3,3171.0,0.001]
[1765794916215,3.73395515,3171.1,3171.0,0.001]
[1765794916403,9.6916619,3171.1,3171.0,0.001]
[1765794919729,3.73395515,3171.1,3171.0,0.001]
[1765794919931,4.73927218,3171.1,3171.0,0.001]
[1765794920330,10.69697893,3171.1,3171.0,0.001]
[1765794922015,11.10248293,3171.1,3171.0,0.001]
[1765794922834,14.41748293,3171.1,3171.0,0.001]
[1765794923003,14.54380516,3171.1,3171.0,0.001]
[1765794923615,25.10030416,3171.1,3171.0,0.001]
[1765794924433,14.54380516,3171.1,3171.0,0.001]
[1765794924635,27.783805,3170.9,3170.7,0.001]
[1765794924833,3.74690673,3170.8,3170.7,0.001]
[1765794926004,3.74690673,3170.8,3170.0,0.001]
[1765794926005,0.58047529,3170.7,3170.0,0.001]
[1765794926228,5.97035997,3170.6,3170.0,0.001]
[1765794926627,9.86583526,3170.6,3170.0,0.001]
[1765794926829,11.54248728,3170.6,3170.0,0.001]
[1765794928720,3.315,3170.4,3170.0,1e-08]
[1765794928925,3.720504,3169.9,3168.4,0.001]
[1765794929122,1.01057322,3169.8,3168.4,0.001]
[1765794929346,4.32557322,3169.8,3168.4,0.001]
[1765794929513,6.53818204,3169.6,3168.4,0.001]
[1765794929708,6.53738204,3169.6,3168.4,0.001]
[1765794930835,13.41285827,3169.6,3168.4,0.001]
[1765794931040,15.11390653,3169.6,3168.4,0.001]
[1765794931441,11.39340253,3169.6,3168.4,0.001]
[1765794936580,3.15497223,3169.6,3168.4,0.406504]
[1765794936950,0.59312851,3169.8,3168.4,3.15709897]
[1765794937586,0.01265322,3169.8,3168.4,6.31326612]
[1765794937866,0.59312851,3169.8,3168.4,6.31326612]
[1765794938473,0.01265322,3169.8,3168.5,0.405504]
[1765794938647,6.30914826,3170.0,3168.5,0.405504]
[1765794938972,0.58047529,3169.7,3168.6,6.31193586]
[1765794940481,0.58047529,3169.7,3168.6,3.15596793]
[1765794941277,3.73544752,3169.6,3168.6,3.15596793]
[1765794941440,3.73544752,3169.6,3168.6,6.31193586]
[1765794943282,3.73544752,3169.6,3168.4,0.001]
[1765794943283,7.73947975,3169.6,3168.4,0.001]
[1765794943482,9.27270675,3169.3,3168.4,0.001]
[1765794943776,0.58047529,3168.4,3168.3,0.0412]
[1765794943979,3.89547529,3168.4,3168.3,0.0412]
[1765794944652,3.89547529,3168.4,3168.2,0.11440407]
[1765794944653,30.24822729,3168.3,3168.2,0.11440407]
[1765794944841,3.315,3168.1,3165.5,3.17165387]
[1765794945038,0.58047529,3167.8,3166.9,3.15866103]
[1765794945275,9.46939806,3168.1,3166.9,0.001]
[1765794945669,0.58047529,3167.8,3166.9,0.001]
[1765794946387,3.315,3167.8,3166.9,0.001]
[1765794946545,0.58047529,3167.7,3166.9,0.001]
[1765794947475,12.62586408,3168.1,3166.9,0.001]
[1765794947476,0.58047529,3167.5,3166.9,0.001]
[1765794949176,3.1568982,3167.7,3166.9,0.001]
[1765794949478,3.15594118,3168.7,3166.9,0.001]
[1765794949479,0.58047529,3168.1,3166.9,0.001]
[1765794949980,0.70197403,3168.0,3166.9,0.001]
[1765794950350,3.15606753,3168.5,3166.9,0.001]
[1765794950685,9.46820259,3168.5,3166.9,0.001]
[1765794950892,0.58047529,3168.4,3166.9,0.001]
[1765794951484,0.58047529,3168.2,3166.9,0.001]
[1765794951753,6.31253352,3168.3,3166.9,0.001]
[1765794951984,0.58047529,3168.2,3166.9,0.001]
[1765794952951,0.57967529,3168.2,3166.9,0.001]
[1765794953349,0.01265322,3167.9,3166.9,0.001]
[1765794953549,6.31352988,3167.8,3166.9,0.001]
[1765794954077,0.01265322,3167.7,3166.9,0.001]
[1765794954960,0.59312851,3167.7,3166.9,0.001]
[1765794955562,3.1571636,3167.4,3166.9,0.001]
[1765794955772,6.3143272,3167.4,3166.9,0.001]
[1765794956382,6.94702524,3167.4,3166.9,0.001]
[1765794958262,0.58047529,3167.5,3166.9,0.001]
[1765794958479,0.01265322,3167.5,3166.9,0.001]
[1765794958661,6.31392852,3167.6,3166.9,0.001]
[1765794960970,3.15648444,3168.1,3166.9,0.001]
[1765794961284,6.31296888,3168.1,3166.9,0.001]
[1765794962299,0.58047529,3168.0,3166.9,0.001]
[1765794962469,0.58047529,3167.8,3166.9,0.001]
[1765794964678,9.4705938,3167.7,3166.9,0.001]
[1765794964882,0.01265322,3167.6,3166.9,0.001]
[1765794965110,1.01776013,3167.6,3166.9,0.001]
[1765794966703,0.58047529,3167.4,3166.9,0.001]
[1765794967007,3.15699655,3167.6,3166.9,0.001]
[1765794967202,0.58047529,3167.5,3166.9,0.001]
[1765794967700,6.3131313,3168.0,3166.9,0.001]
[1765794967903,1.21178842,3167.9,3166.9,0.001]
[1765794968073,1.22444164,3167.9,3166.9,0.001]
[1765794969079,6.31352988,3167.8,3166.9,0.001]
[1765794972902,6.3261831,3167.8,3166.9,0.001]
[1765794974406,0.58047529,3167.7,3166.9,0.001]
[1765794974607,1.01899555,3167.6,3166.9,0.001]
[1765794974909,1.00634233,3167.6,3166.9,0.001]
[1765794975076,6.31412786,3167.5,3166.9,0.001]
[1765794976400,6.31332786,3167.5,3166.9,0.001]
[1765794977408,0.01265322,3167.4,3166.9,0.001]
[1765794977589,0.9483045,3167.3,3166.9,0.001]
[1765794978505,0.01265322,3167.0,3166.9,0.001]
[1765794979395,3.15746266,3167.1,3166.9,0.001]
[1765794979595,0.58047529,3167.0,3166.9,0.001]
[1765794979905,0.58047529,3167.1,3166.9,0.001]
[1765794980982,1.27000029,3167.1,3166.9,0.001]
[1765794981427,3.73803765,3167.0,3166.9,0.001]
[1765794982816,3.75069087,3167.0,3166.9,0.001]
[1765794985984,3.73803765,3167.0,3166.9,0.001]
[1765794986494,3.75069087,3167.0,3166.9,0.001]
[1765794986689,4.49907086,3167.0,3166.9,0.001]
[1765794986925,1.00634233,3167.6,3166.9,0.001]
[1765794987219,0.58047529,3167.8,3166.9,0.001]
[1765794987382,6.31333058,3167.9,3166.9,0.001]
[1765794987788,0.58047529,3167.8,3166.9,0.001]
[1765794988015,0.002,3167.5,3166.9,0.001]
[1765794989290,0.002,3167.5,3167.0,1.3]
[1765794990038,6.31612786,3167.5,3167.0,1.3]
[1765794990328,3.15906393,3167.5,3167.0,1.3]
[1765794990485,0.63160309,3167.4,3167.0,1.3]
[1765794990686,0.63160309,3167.4,3166.9,0.001]
[1765794991410,0.01265322,3167.3,3166.9,0.001]
[1765794992116,3.15736297,3167.2,3166.9,0.001]
[1765794993090,6.31472594,3167.2,3166.9,0.001]
[1765794993490,7.06740637,3167.2,3166.9,0.001]
[1765794993790,1.21207838,3167.4,3166.9,0.001]
[1765794993791,3.1571636,3167.4,3166.9,0.001]
[1765794994217,0.58247529,3167.5,3166.9,0.001]
[1765794996021,0.002,3167.5,3166.9,0.001]
[1765794999502,0.0012,3167.5,3166.9,0.001]
[1765795002743,0.0012,3167.5,3167.0,0.405504]
[1765795003045,0.0012,3167.5,3166.9,0.406504]
[1765795003728,0.0012,3167.5,3167.1,0.405504]
[1765795004022,0.0012,3167.5,3167.3,0.405504]
[1765795004331,0.0012,3167.5,3167.3,1.705504]
[1765795005032,0.0012,3167.5,3167.3,1.3]
[1765795006495,0.0012,3167.5,3167.3,4.45722676]
[1765795006730,0.0012,3167.5,3167.3,1.3]
[1765795006905,0.0012,3167.5,3167.3,4.90296912]
[1765795007708,0.0012,3167.5,3167.3,1.74573193]
[1765795007907,0.0012,3167.5,3167.3,1.3]
[1765795008117,0.0012,3167.5,3167.3,4.45720166]
[1765795008321,0.0012,3167.5,3167.3,7.61446494]
[1765795010125,0.0012,3167.5,3167.4,3.5626676]
[1765795012627,0.0012,3167.5,3167.4,3.1571636]
[1765795012822,0.0012,3167.5,3167.4,3.60287996]
[1765795013020,0.0012,3167.5,3167.4,4.00838396]
[1765795013417,0.0012,3167.5,3167.4,3.60287996]
[1765795013749,0.0012,3167.5,3167.3,4.45724073]
[1765795014120,0.0012,3167.5,3167.3,1.3]
[1765795014325,0.0012,3167.5,3167.3,4.45724882]
[1765795015037,0.0012,3167.5,3167.4,0.405504]
[1765795015635,0.0012,3167.5,3167.3,4.45724882]
[1765795016135,0.0012,3167.5,3167.3,1.3]
[1765795018211,0.0012,3167.5,3167.3,4.45723761]
[1765795019236,0.0012,3167.5,3167.3,1.3]
[1765795019420,0.0012,3167.5,3167.3,4.45725595]
[1765795019616,0.0012,3167.5,3167.3,5.2187209]